bitfinex-derivatives/quotes_BTCF0:USTF0_20260314
["timestamp","ask_amount","ask_price","bid_price","bid_amount"]
[1773515471375,0.04242,70711.0,70697.0,0.042427]
[1773515471569,0.04242,70711.0,70698.0,0.0014]
[1773515472178,0.0014,70712.0,70698.0,0.0014]
[1773515472179,0.04242,70710.0,70698.0,0.0014]
[1773515473384,0.00947452,70709.0,70693.0,0.0014]
[1773515473681,0.00947452,70709.0,70692.0,0.04383]
[1773515474079,0.00947452,70705.0,70693.0,0.04243]
[1773515474683,0.00947452,70705.0,70693.0,0.04383]
[1773515475493,0.00947452,70705.0,70693.0,0.04243]
[1773515475784,0.00947452,70705.0,70693.0,0.04383]
[1773515475990,0.00947452,70705.0,70693.0,0.04243]
[1773515476285,0.00947452,70705.0,70694.0,0.042429]
[1773515479781,0.00947452,70701.0,70675.0,0.00998799]
[1773515480080,0.00921147,70707.0,70686.0,0.042434]
[1773515480081,0.042428,70698.0,70686.0,0.042434]
[1773515480278,0.01868599,70707.0,70686.0,0.00998799]
[1773515480279,0.0014,70697.0,70686.0,0.00998799]
[1773515480491,0.0014,70700.0,70688.0,0.00998799]
[1773515480788,0.0014,70701.0,70688.0,0.00998799]
[1773515481182,0.042426,70700.0,70688.0,0.00998799]
[1773515483494,0.042426,70700.0,70688.0,0.042433]
[1773515483695,0.0014,70702.0,70691.0,0.042431]
[1773515483889,0.053684,70703.0,70690.0,0.01077726]
[1773515484089,0.055084,70703.0,70690.0,0.01077726]
[1773515484789,0.043824,70703.0,70690.0,0.01077726]
[1773515487007,0.043824,70703.0,70690.0,0.05320926]
[1773515487208,0.042424,70703.0,70691.0,0.01077726]
[1773515493607,0.043824,70703.0,70691.0,0.01077726]
[1773515494009,0.042424,70703.0,70691.0,0.01077726]
[1773515494210,0.043824,70703.0,70691.0,0.01077726]
[1773515494510,0.042424,70703.0,70691.0,0.01077726]
[1773515495210,0.01125,70711.0,70691.0,0.01077726]
[1773515495405,0.01265,70711.0,70689.0,0.01077726]
[1773515495803,0.01265,70711.0,70694.0,0.042429]
[1773515497017,0.042422,70708.0,70695.0,0.0014]
[1773515497504,0.042422,70707.0,70695.0,0.0014]
[1773515499611,0.042421,70709.0,70695.0,0.01217726]
[1773515499812,0.042422,70708.0,70697.0,0.01077726]
[1773515501112,0.20370443,70707.0,70697.0,0.01077726]
[1773515501412,0.20370443,70706.0,70697.0,0.01077726]
[1773515501613,0.20370443,70705.0,70697.0,0.01077726]
[1773515501800,0.20370443,70704.0,70697.0,0.01077726]
[1773515502007,0.20370443,70703.0,70697.0,0.01077726]
[1773515502206,0.20370443,70702.0,70697.0,0.01077726]
[1773515502411,0.20370443,70701.0,70695.0,0.043828]
[1773515502712,0.20370443,70700.0,70695.0,0.05460526]
[1773515502911,0.20370443,70699.0,70695.0,0.05460526]
[1773515503099,0.20370443,70698.0,70695.0,0.05460526]
[1773515503303,0.042422,70707.0,70695.0,0.05460526]
[1773515508818,0.042423,70706.0,70695.0,0.05460526]
[1773515515430,0.20060789,70705.0,70695.0,0.05460526]
[1773515515624,0.20060789,70704.0,70695.0,0.05460526]
[1773515515816,0.20060789,70703.0,70695.0,0.05460526]
[1773515516015,0.20060789,70702.0,70695.0,0.05460526]
[1773515516215,0.20060789,70701.0,70695.0,0.05460526]
[1773515516415,0.042423,70706.0,70695.0,0.05460526]
[1773515516623,0.20061672,70705.0,70695.0,0.05460526]
[1773515516825,0.20061672,70704.0,70695.0,0.05460526]
[1773515517125,0.20061672,70703.0,70695.0,0.05460526]
[1773515517424,0.20061672,70702.0,70696.0,0.042428]
[1773515517624,0.20061672,70701.0,70696.0,0.05411953]
[1773515517825,0.042422,70707.0,70696.0,0.05411953]
[1773515518029,0.20062737,70706.0,70696.0,0.01169153]
[1773515518226,0.20062737,70705.0,70696.0,0.01169153]
[1773515518420,0.20062737,70704.0,70696.0,0.01169153]
[1773515518619,0.20062737,70703.0,70696.0,0.01169153]
[1773515518819,0.20062737,70702.0,70696.0,0.01169153]
[1773515519125,0.042422,70707.0,70696.0,0.01169153]
[1773515519324,0.20063527,70706.0,70696.0,0.01169153]
[1773515519526,0.20063527,70705.0,70696.0,0.01169153]
[1773515519726,0.20063527,70704.0,70696.0,0.01169153]
[1773515519920,0.20063527,70703.0,70695.0,0.0014]
[1773515520227,0.20063527,70702.0,70695.0,0.0014]
[1773515520430,0.20063527,70701.0,70695.0,0.0014]
[1773515520631,0.042422,70707.0,70695.0,0.0014]
[1773515520830,0.20065444,70706.0,70695.0,0.0014]
[1773515521030,0.20065444,70705.0,70695.0,0.0014]
[1773515521329,0.20065444,70704.0,70695.0,0.0014]
[1773515521525,0.20065444,70703.0,70695.0,0.0014]
[1773515521726,0.20065444,70702.0,70695.0,0.0014]
[1773515521930,0.20065444,70701.0,70695.0,0.0014]
[1773515522132,0.042422,70707.0,70695.0,0.0014]
[1773515522333,0.20068714,70706.0,70695.0,0.0014]
[1773515522532,0.20068714,70705.0,70695.0,0.0014]
[1773515522727,0.20068714,70704.0,70695.0,0.0014]
[1773515522928,0.20068714,70703.0,70695.0,0.0014]
[1773515523233,0.042423,70706.0,70695.0,0.0014]
[1773515523234,0.20068714,70702.0,70695.0,0.0014]
[1773515523425,0.20068714,70701.0,70695.0,0.0014]
[1773515523626,0.042423,70706.0,70695.0,0.0014]
[1773515523931,0.20071128,70705.0,70695.0,0.0014]
[1773515524132,0.20071128,70704.0,70695.0,0.0014]
[1773515524329,0.20071128,70703.0,70695.0,0.0014]
[1773515524530,0.20071128,70702.0,70695.0,0.0014]
[1773515524731,0.20071128,70701.0,70695.0,0.0014]
[1773515524931,0.042423,70706.0,70695.0,0.0014]
[1773515525130,0.20073768,70705.0,70695.0,0.0014]
[1773515525331,0.20073768,70704.0,70695.0,0.0014]
[1773515525531,0.20073768,70703.0,70695.0,0.0014]
[1773515525732,0.042423,70706.0,70695.0,0.0014]
[1773515525733,0.20073768,70702.0,70695.0,0.0014]
[1773515525935,0.20073768,70701.0,70695.0,0.0014]
[1773515526145,0.042423,70706.0,70695.0,0.0014]
[1773515526336,0.20077314,70705.0,70695.0,0.0014]
[1773515526537,0.20077314,70704.0,70695.0,0.0014]
[1773515526837,0.20077314,70703.0,70695.0,0.0014]
[1773515527037,0.20077314,70702.0,70695.0,0.0014]
[1773515527237,0.20077314,70701.0,70695.0,0.0014]
[1773515527438,0.20077314,70700.0,70695.0,0.0014]
[1773515527631,0.042423,70706.0,70695.0,0.0014]
[1773515527832,0.20082615,70705.0,70695.0,0.0014]
[1773515528033,0.20082615,70704.0,70695.0,0.0014]
[1773515528335,0.20082615,70703.0,70695.0,0.0014]
[1773515528638,0.20082615,70702.0,70695.0,0.0014]
[1773515528938,0.20082615,70701.0,70695.0,0.0014]
[1773515529241,0.20082615,70700.0,70695.0,0.0014]
[1773515529539,0.20082615,70699.0,70695.0,0.0014]
[1773515529739,0.042423,70706.0,70695.0,0.0014]
[1773515529938,0.20096166,70705.0,70695.0,0.0014]
[1773515530137,0.042423,70706.0,70695.0,0.0014]
[1773515530138,0.20096166,70704.0,70695.0,0.0014]
[1773515530338,0.20096166,70703.0,70695.0,0.0014]
[1773515530540,0.20096166,70702.0,70695.0,0.0014]
[1773515530843,0.20096166,70701.0,70695.0,0.0014]
[1773515531041,0.20096166,70700.0,70695.0,0.043829]
[1773515531339,0.20096166,70699.0,70695.0,0.043829]
[1773515531540,0.042423,70706.0,70695.0,0.043829]
[1773515531729,0.20096485,70705.0,70695.0,0.043829]
[1773515531932,0.20096485,70704.0,70695.0,0.043829]
[1773515532133,0.20096485,70703.0,70695.0,0.043829]
[1773515532330,0.20096485,70702.0,70695.0,0.043829]
[1773515532536,0.20096485,70701.0,70695.0,0.043829]
[1773515532832,0.20096485,70700.0,70695.0,0.043829]
[1773515533036,0.0014,70710.0,70695.0,0.0014]
[1773515533241,0.01125,70711.0,70695.0,0.01309153]
[1773515534032,0.042421,70709.0,70697.0,0.042427]
[1773515534944,0.042421,70708.0,70697.0,0.042427]
[1773515549254,0.04242,70710.0,70697.0,0.042427]
[1773515551056,0.042421,70709.0,70697.0,0.042427]
[1773515587392,0.042421,70709.0,70697.0,0.05501366]
[1773515588691,0.042421,70709.0,70698.0,0.01258666]
[1773515589492,0.042421,70709.0,70698.0,0.05501366]
[1773515596396,0.42303637,70720.0,70699.0,0.07389043]
[1773515596595,0.042415,70718.0,70701.0,0.01258666]
[1773515597195,0.042415,70718.0,70702.0,0.0014]
[1773515597495,0.42303637,70726.0,70707.0,0.042421]
[1773515597695,0.001,70720.0,70708.0,0.01258666]
[1773515598498,0.042414,70721.0,70708.0,0.01258666]
[1773515599495,0.0014,70728.0,70706.0,0.01258666]
[1773515599897,0.042411,70725.0,70705.0,0.0014]
[1773515600092,0.042411,70725.0,70706.0,0.01258666]
[1773515600499,0.001,70721.0,70709.0,0.05500666]
[1773515601093,0.042412,70724.0,70709.0,0.05500666]
[1773515601494,0.042412,70724.0,70711.0,0.042419]
[1773515602002,0.042412,70724.0,70711.0,0.055091]
[1773515602994,0.043812,70724.0,70711.0,0.055091]
[1773515603197,0.042412,70724.0,70711.0,0.055091]
[1773515603506,0.042413,70723.0,70711.0,0.012672]
[1773515603806,0.042413,70723.0,70711.0,0.01271202]
[1773515611215,0.042413,70723.0,70711.0,4.002e-05]
[1773515614214,0.01190904,70730.0,70711.0,4.002e-05]
[1773515614416,0.042412,70724.0,70712.0,0.042418]
[1773515615311,0.0014,70727.0,70711.0,4.002e-05]
[1773515615508,0.0014,70726.0,70711.0,0.00144002]
[1773515616115,0.08579947,70730.0,70711.0,0.00144002]
[1773515616313,0.0014,70729.0,70711.0,0.00144002]
[1773515616709,0.001,70726.0,70711.0,4.002e-05]
[1773515617112,0.001,70726.0,70711.0,0.01271202]
[1773515617514,0.0014,70725.0,70711.0,0.01271202]
[1773515618019,0.043811,70725.0,70712.0,0.042419]
[1773515618315,0.042411,70725.0,70712.0,0.042419]
[1773515618619,0.043811,70725.0,70712.0,0.042419]
[1773515618816,0.042411,70725.0,70712.0,0.042419]
[1773515619119,0.043811,70725.0,70712.0,0.042419]
[1773515619316,0.042411,70725.0,70712.0,0.042419]
[1773515619516,0.043811,70725.0,70712.0,0.042419]
[1773515619926,0.042411,70725.0,70712.0,0.043819]
[1773515620423,0.042412,70724.0,70712.0,0.043819]
[1773515622315,0.0014,70726.0,70712.0,0.043819]
[1773515622316,0.043811,70726.0,70713.0,0.042418]
[1773515622516,0.0014,70726.0,70713.0,4.002e-05]
[1773515622711,0.0738587,70730.0,70713.0,0.04245802]
[1773515623021,0.0007069,70731.0,70713.0,0.01271202]
[1773515623022,0.0014,70729.0,70713.0,0.01271202]
[1773515623212,0.0014,70728.0,70713.0,0.01271202]
[1773515623614,0.0007069,70731.0,70713.0,0.01271202]
[1773515623814,0.0014,70730.0,70713.0,0.01271202]
[1773515624020,0.04241,70727.0,70714.0,0.055089]
[1773515625018,0.0014,70728.0,70714.0,0.055089]
[1773515625019,0.042411,70726.0,70714.0,0.055089]
[1773515634532,0.04241,70728.0,70716.0,0.01215841]
[1773515634834,0.04241,70728.0,70716.0,0.01219843]
[1773515635332,0.04241,70727.0,70716.0,0.01219843]
[1773515640937,0.0007069,70731.0,70716.0,0.01219843]
[1773515641937,0.042409,70729.0,70717.0,0.042416]
[1773515642132,0.042409,70729.0,70718.0,0.0014]
[1773515642444,0.042409,70729.0,70718.0,0.00144002]
[1773515644146,0.042409,70729.0,70718.0,4.002e-05]
[1773515644948,0.042409,70729.0,70719.0,0.0014]
[1773515645531,0.0007069,70731.0,70726.0,0.04241]
[1773515645532,9e-07,70731.0,70726.0,0.04241]
[1773515645737,0.43435182,70740.0,70726.0,0.04241]
[1773515645738,0.0014,70738.0,70726.0,4.002e-05]
[1773515646037,0.01131545,70745.0,70726.0,4.002e-05]
[1773515646238,0.0014,70746.0,70727.0,0.0014]
[1773515646446,0.01131545,70753.0,70728.0,0.01215841]
[1773515646638,0.0014,70752.0,70732.0,0.042406]
[1773515646839,0.042399,70745.0,70732.0,0.04244602]
[1773515647039,0.001,70738.0,70732.0,0.04244602]
[1773515647239,0.042399,70745.0,70732.0,0.04244602]
[1773515648038,0.043399,70745.0,70732.0,0.04244602]
[1773515648636,0.042399,70745.0,70732.0,0.04244602]
[1773515650841,0.0424,70744.0,70732.0,0.04244602]
[1773515651039,0.01265,70747.0,70732.0,4.002e-05]
[1773515651239,0.01131545,70735.0,70717.0,0.0014]
[1773515651442,0.0738587,70730.0,70720.0,0.042414]
[1773515652243,0.042406,70733.0,70720.0,0.042414]
[1773515659954,0.0014,70736.0,70724.0,0.042412]
[1773515661354,0.043805,70736.0,70724.0,0.042412]
[1773515667055,0.043805,70736.0,70723.0,0.01215841]
[1773515671065,0.042405,70735.0,70723.0,0.01215841]
[1773515672566,0.042405,70735.0,70722.0,0.042412]
[1773515673160,0.042406,70734.0,70722.0,0.042412]
[1773515674274,0.0014,70745.0,70721.0,0.01132609]
[1773515674568,0.042404,70737.0,70725.0,0.01132609]
[1773515675069,0.042404,70737.0,70725.0,0.01272609]
[1773515676269,0.042405,70736.0,70725.0,0.01272609]
[1773515682285,0.042405,70736.0,70725.0,0.01132609]
[1773515682577,0.042405,70736.0,70725.0,0.01272609]
[1773515691289,0.042405,70735.0,70725.0,0.01272609]
[1773515696996,0.042404,70737.0,70725.0,0.01272609]
[1773515697297,0.042405,70735.0,70725.0,0.01272609]
[1773515701310,0.042406,70734.0,70725.0,0.0014]
[1773515701601,0.042406,70734.0,70704.0,0.25420836]
[1773515701602,0.042416,70717.0,70700.0,0.01260011]
[1773515701994,0.19976345,70716.0,70700.0,0.01260011]
[1773515702201,0.19976345,70715.0,70700.0,0.01260011]
[1773515702402,0.042416,70717.0,70704.0,0.042423]
[1773515702602,0.19963911,70716.0,70704.0,0.042423]
[1773515702797,0.19963911,70715.0,70704.0,0.042423]
[1773515703098,0.19963911,70714.0,70694.0,0.01120011]
[1773515703303,0.19963911,70713.0,70701.0,0.042425]
[1773515703490,0.042417,70715.0,70701.0,0.042425]
[1773515703491,0.19963911,70712.0,70701.0,0.042425]
[1773515703695,0.19963911,70711.0,70701.0,0.042425]
[1773515703902,0.042417,70715.0,70701.0,0.042425]
[1773515704201,0.19953121,70714.0,70702.0,0.0014]
[1773515704404,0.042417,70715.0,70702.0,0.0014]
[1773515704405,0.19953121,70713.0,70702.0,0.0014]
[1773515704595,0.19953121,70712.0,70702.0,0.0014]
[1773515704794,0.042417,70715.0,70702.0,0.0014]
[1773515704996,0.19944849,70714.0,70702.0,0.0014]
[1773515705303,0.19944849,70713.0,70702.0,0.043824]
[1773515705503,0.19938465,70712.0,70702.0,0.043824]
[1773515705706,0.042416,70717.0,70703.0,0.042424]
[1773515705898,0.66400807,70767.0,70706.0,0.01120011]
[1773515705899,0.19938328,70716.0,70706.0,0.01120011]
[1773515706100,0.19938328,70715.0,70706.0,0.01120011]
[1773515706303,0.042416,70718.0,70706.0,0.01120011]
[1773515706505,0.19934037,70717.0,70706.0,0.01120011]
[1773515706702,0.19934037,70716.0,70706.0,0.01120011]
[1773515707007,0.01265,70724.0,70706.0,0.01120011]
[1773515707008,0.19934037,70715.0,70706.0,0.01120011]
[1773515707202,0.042416,70717.0,70706.0,0.01120011]
[1773515707401,0.19930871,70716.0,70706.0,0.01120011]
[1773515707601,0.19930871,70715.0,70706.0,0.01120011]
[1773515707801,0.042416,70717.0,70706.0,0.01120011]
[1773515708006,0.19930871,70716.0,70706.0,0.01120011]
[1773515708202,0.042416,70717.0,70706.0,0.01120011]
[1773515711497,0.19922806,70716.0,70706.0,0.01120011]
[1773515711697,0.042416,70717.0,70706.0,0.01120011]
[1773515711898,0.19922806,70716.0,70703.0,0.042424]
[1773515712104,0.042416,70717.0,70703.0,0.042424]
[1773515712307,0.19922121,70716.0,70703.0,0.042424]
[1773515712505,0.042416,70717.0,70703.0,0.042424]
[1773515712706,0.19921625,70716.0,70703.0,0.042424]
[1773515712909,0.042416,70717.0,70703.0,0.042424]
[1773515713110,0.19921634,70716.0,70703.0,0.042424]
[1773515713305,0.042416,70717.0,70703.0,0.042424]
[1773515713509,0.1992071,70716.0,70703.0,0.05362411]
[1773515713708,0.042416,70717.0,70703.0,0.05362411]
[1773515714011,0.1992071,70716.0,70703.0,0.05362411]
[1773515714213,0.042416,70717.0,70703.0,0.05362411]
[1773515714411,0.19920062,70716.0,70703.0,0.05362411]
[1773515714607,0.042416,70717.0,70703.0,0.05362411]
[1773515714806,0.19920062,70716.0,70703.0,0.05362411]
[1773515715108,0.042416,70717.0,70703.0,0.05362411]
[1773515715306,0.19919935,70716.0,70703.0,0.05362411]
[1773515715501,0.042416,70717.0,70703.0,0.05362411]
[1773515715700,0.19919681,70716.0,70703.0,0.05362411]
[1773515715898,0.042416,70717.0,70703.0,0.05362411]
[1773515716104,0.19919681,70716.0,70704.0,0.042423]
[1773515716305,0.042416,70717.0,70704.0,0.042423]
[1773515716512,0.19919562,70716.0,70704.0,0.042423]
[1773515716716,0.042416,70717.0,70705.0,0.042423]
[1773515717006,0.01125,70724.0,70708.0,0.01120011]
[1773515717809,0.01125,70724.0,70715.0,0.042416]
[1773515718810,0.042409,70728.0,70715.0,0.042416]
[1773515719109,0.042411,70726.0,70713.0,0.042418]
[1773515720215,0.042411,70726.0,70714.0,0.042417]
[1773515721806,0.01291071,70725.0,70708.0,0.0014]
[1773515722317,0.01291071,70725.0,70709.0,0.0014]
[1773515722714,0.042415,70719.0,70706.0,0.042422]
[1773515722904,0.042415,70719.0,70707.0,0.0014]
[1773515723309,0.042415,70719.0,70706.0,0.042422]
[1773515723310,0.042415,70719.0,70708.0,0.0014]
[1773515723918,0.042415,70719.0,70709.0,0.0014]
[1773515724318,0.042415,70719.0,70706.0,0.042422]
[1773515724525,0.042415,70719.0,70707.0,0.0014]
[1773515724911,0.042415,70719.0,70708.0,0.0014]
[1773515725420,0.042415,70719.0,70709.0,0.0014]
[1773515725824,0.042415,70719.0,70706.0,0.042422]
[1773515726118,0.042415,70719.0,70707.0,0.043821]
[1773515726321,0.042415,70719.0,70707.0,0.042421]
[1773515726626,0.042415,70719.0,70708.0,0.0014]
[1773515726810,0.042415,70719.0,70707.0,0.042421]
[1773515727917,0.042415,70719.0,70708.0,0.0014]
[1773515728218,0.042415,70719.0,70707.0,0.042421]
[1773515728419,0.042415,70719.0,70707.0,0.043821]
[1773515729220,0.042415,70719.0,70707.0,0.042421]
[1773515729417,0.042415,70719.0,70708.0,0.0014]
[1773515730714,0.042415,70719.0,70707.0,0.042421]
[1773515730914,0.042415,70719.0,70708.0,0.0014]
[1773515731219,0.042415,70719.0,70707.0,0.042421]
[1773515731420,0.042415,70719.0,70708.0,0.0014]
[1773515731722,0.042415,70719.0,70707.0,0.042421]
[1773515731922,0.042415,70719.0,70708.0,0.0014]
[1773515732224,0.042415,70719.0,70707.0,0.042421]
[1773515732422,0.042415,70719.0,70708.0,0.0014]
[1773515732722,0.042415,70719.0,70707.0,0.042421]
[1773515732930,0.042415,70719.0,70708.0,0.0014]
[1773515733724,0.042415,70719.0,70707.0,0.042421]
[1773515733926,0.042415,70719.0,70708.0,0.0014]
[1773515734218,0.042415,70719.0,70707.0,0.042421]
[1773515734414,0.042415,70719.0,70708.0,0.0014]
[1773515735216,0.042415,70719.0,70707.0,0.042421]
[1773515735517,0.042415,70719.0,70708.0,0.0014]
[1773515737925,0.05423644,70719.0,70708.0,0.0014]
[1773515738322,0.042415,70719.0,70707.0,0.042421]
[1773515738623,0.042415,70719.0,70708.0,0.0014]
[1773515740425,0.042414,70721.0,70708.0,0.0014]
[1773515741227,0.042414,70721.0,70708.0,0.043821]
[1773515743123,0.042414,70721.0,70709.0,0.04242]
[1773515746832,0.042412,70723.0,70709.0,0.04242]
[1773515747633,0.042412,70723.0,70710.0,0.04242]
[1773515750337,0.042412,70723.0,70710.0,0.05424003]
[1773515758839,0.01255325,70725.0,70708.0,0.043821]
[1773515760943,0.042414,70721.0,70708.0,0.043821]
[1773515762034,0.042414,70720.0,70708.0,0.043821]
[1773515765142,0.042414,70720.0,70709.0,0.0014]
[1773515766446,0.042414,70720.0,70708.0,0.042421]
[1773515766635,0.042414,70720.0,70709.0,0.0014]
[1773515776150,0.042413,70722.0,70709.0,0.0014]
[1773515776350,0.042413,70722.0,70709.0,0.04382]
[1773515776650,0.042413,70722.0,70710.0,0.04242]
[1773515777649,0.042412,70724.0,70711.0,0.042419]
[1773515778048,0.042412,70724.0,70711.0,0.05443312]
[1773515812792,0.042412,70724.0,70712.0,0.042419]
[1773515816793,0.01030798,70737.0,70709.0,0.0014]
[1773515817000,0.02659311,70744.0,70724.0,0.01014342]
[1773515817296,0.0014,70740.0,70724.0,0.01014342]
[1773515817593,0.042403,70739.0,70727.0,0.042409]
[1773515817797,0.01225,70735.0,70728.0,0.042409]
[1773515817996,0.0014,70742.0,70724.0,0.01014342]
[1773515818386,0.0014,70742.0,70730.0,0.042408]
[1773515825302,0.0014,70742.0,70730.0,0.05255142]
[1773515825600,0.0014,70742.0,70731.0,0.05255042]
[1773515826802,0.02659311,70744.0,70736.0,0.01014342]
[1773515827507,0.0014,70748.0,70735.0,0.01014342]
[1773515827803,0.042396,70750.0,70735.0,0.01014342]
[1773515828110,0.0014,70748.0,70735.0,0.01014342]
[1773515828404,0.042396,70750.0,70735.0,0.01014342]
[1773515828405,0.0014,70749.0,70735.0,0.01014342]
[1773515829001,0.0014,70749.0,70737.0,0.05254642]
[1773515829698,0.043797,70749.0,70737.0,0.05254642]
[1773515829892,0.042397,70748.0,70737.0,0.01018342]
[1773515830790,0.042398,70747.0,70737.0,0.01018342]
[1773515831202,0.042398,70747.0,70737.0,4e-05]
[1773515831392,0.0014,70749.0,70734.0,0.0014]
[1773515831393,0.0424,70743.0,70734.0,0.0014]
[1773515831592,0.0424,70743.0,70731.0,0.042407]
[1773515833904,0.042399,70745.0,70731.0,0.042407]
[1773515834804,0.01170798,70749.0,70731.0,0.042407]
[1773515835507,0.0424,70744.0,70731.0,0.042407]
[1773515835704,0.0424,70744.0,70711.0,0.042419]
[1773515835705,0.07385495,70741.0,70713.0,0.01014342]
[1773515835900,0.042404,70737.0,70724.0,0.042411]
[1773515836298,0.042404,70737.0,70724.0,0.043811]
[1773515837106,0.042404,70737.0,70725.0,0.042411]
[1773515841103,0.01265,70746.0,70729.0,0.01014342]
[1773515841299,0.0424,70744.0,70733.0,0.01014342]
[1773515843106,0.42305729,70762.0,70733.0,0.01014342]
[1773515843309,0.042397,70749.0,70741.0,0.01031717]
[1773515843909,0.042397,70749.0,70738.0,0.0014]
[1773515845422,0.042397,70749.0,70739.0,0.01031717]
[1773515848313,0.042397,70749.0,70738.0,0.0014]
[1773515849505,0.01125,70754.0,70738.0,0.0014]
[1773515849506,0.01125,70754.0,70739.0,0.01031717]
[1773515849715,0.042394,70753.0,70740.0,0.042402]
[1773515850309,0.042394,70753.0,70740.0,0.043802]
[1773515852117,0.042395,70752.0,70740.0,0.043802]
[1773515852819,0.01125,70762.0,70741.0,0.01031717]
[1773515853118,0.042393,70756.0,70743.0,0.05271717]
[1773515855919,0.0014,70758.0,70743.0,4e-05]
[1773515857021,0.042393,70756.0,70743.0,0.04244]
[1773515861229,0.0014,70758.0,70743.0,4e-05]
[1773515862127,0.042394,70753.0,70743.0,4e-05]
[1773515864135,0.042393,70755.0,70743.0,4e-05]
[1773515865939,0.042394,70754.0,70743.0,4e-05]
[1773515869648,0.19801657,70753.0,70743.0,4e-05]
[1773515869836,0.19801657,70752.0,70743.0,4e-05]
[1773515870036,0.19801657,70751.0,70743.0,4e-05]
[1773515870240,0.19801657,70750.0,70743.0,4e-05]
[1773515870441,0.19801657,70749.0,70743.0,4e-05]
[1773515870741,0.19801657,70748.0,70743.0,4e-05]
[1773515870942,0.19801657,70747.0,70743.0,4e-05]
[1773515871141,0.19801657,70746.0,70743.0,4e-05]
[1773515871345,5.7e-07,70745.0,70743.0,4e-05]
[1773515871544,0.042394,70754.0,70743.0,4e-05]
[1773515872938,0.0014,70758.0,70724.0,0.01205654]
[1773515872939,0.01190452,70750.0,70724.0,0.01205654]
[1773515873139,0.01190452,70748.0,70725.0,0.0014]
[1773515873439,0.042402,70740.0,70727.0,0.04241]
[1773515873638,0.042402,70740.0,70728.0,0.0014]
[1773515874836,0.01190452,70740.0,70727.0,0.04241]
[1773515875043,0.042403,70739.0,70726.0,0.0014]
[1773515875241,0.042403,70739.0,70726.0,0.04381]
[1773515879149,0.01190452,70739.0,70721.0,0.0014]
[1773515879351,0.01190452,70739.0,70722.0,0.0014]
[1773515879545,0.01190452,70739.0,70723.0,0.0014]
[1773515880052,0.042404,70737.0,70724.0,0.042411]
[1773515880246,0.042404,70737.0,70725.0,0.042411]
[1773515881453,0.042403,70739.0,70726.0,0.04241]
[1773515889959,0.042403,70738.0,70726.0,0.04241]
[1773515890958,0.0014,70741.0,70716.0,0.042416]
[1773515890959,0.01190452,70739.0,70716.0,0.042416]
[1773515891154,0.042409,70729.0,70717.0,0.0014]
[1773515891356,0.04241,70727.0,70718.0,0.0014]
[1773515891751,0.04241,70727.0,70717.0,0.0014]
[1773515891954,0.042409,70729.0,70717.0,0.0014]
[1773515892453,0.0014,70732.0,70717.0,0.0014]
[1773515892454,0.04241,70728.0,70717.0,0.0014]
[1773515894048,0.0014,70732.0,70717.0,0.0014]
[1773515894360,0.042408,70730.0,70717.0,0.043815]
[1773515896362,0.042408,70730.0,70718.0,0.042415]
[1773515900964,0.042408,70730.0,70718.0,0.043815]
[1773515905260,0.042408,70730.0,70718.0,0.042415]
[1773515905568,0.042408,70730.0,70718.0,0.043815]
[1773515906467,0.042408,70730.0,70718.0,0.0014]
[1773515906658,0.042409,70729.0,70717.0,0.0014]
[1773515907055,0.042409,70728.0,70715.0,0.042416]
[1773515907462,0.042409,70728.0,70716.0,0.0014]
[1773515908268,0.042409,70728.0,70716.0,0.043816]
[1773515909568,0.01532671,70732.0,70716.0,0.0014]
[1773515909969,0.01392671,70731.0,70716.0,0.0014]
[1773515910670,0.04241,70728.0,70716.0,0.0014]
[1773515910868,0.04241,70728.0,70715.0,0.043817]
[1773515911262,0.04241,70728.0,70715.0,0.042417]
[1773515911460,0.04241,70728.0,70715.0,0.043817]
[1773515912369,0.04241,70728.0,70715.0,0.042417]
[1773515912571,0.04241,70728.0,70715.0,0.043817]
[1773515912871,0.04241,70728.0,70715.0,0.042417]
[1773515913970,0.04241,70728.0,70715.0,0.043817]
[1773515914566,0.04241,70728.0,70707.0,0.01126]
[1773515914567,0.01392671,70731.0,70711.0,0.0014]
[1773515914870,0.01392671,70731.0,70712.0,0.0014]
[1773515915262,0.01392671,70729.0,70712.0,0.043818]
[1773515915461,0.042412,70724.0,70712.0,0.042418]
[1773515915662,0.0014,70725.0,70712.0,0.0014]
[1773515916072,0.0014,70725.0,70709.0,0.0014]
[1773515916073,0.01392671,70724.0,70709.0,0.0014]
[1773515916564,0.01392671,70724.0,70707.0,0.053681]
[1773515916565,0.042414,70720.0,70707.0,0.053681]
[1773515917367,0.042414,70720.0,70708.0,0.042421]
[1773515918774,0.01392671,70724.0,70707.0,0.01126]
[1773515920077,0.042415,70719.0,70707.0,0.01126]
[1773515924478,0.01125,70730.0,70713.0,0.01328168]
[1773515924683,0.0014,70729.0,70713.0,0.01328168]
[1773515924982,0.042411,70725.0,70713.0,0.05569968]
[1773515925179,0.043811,70725.0,70713.0,0.05569968]
[1773515925575,0.042411,70725.0,70713.0,0.05569968]
[1773515925776,0.043811,70725.0,70713.0,0.05569968]
[1773515926172,0.042411,70725.0,70713.0,0.05569968]
[1773515928678,0.0014,70727.0,70716.0,0.042416]
[1773515929086,0.042409,70728.0,70716.0,0.042416]
[1773515929286,0.0014,70727.0,70716.0,0.042416]
[1773515929476,0.043809,70728.0,70716.0,0.042416]
[1773515929877,0.042409,70728.0,70716.0,0.042416]
[1773515930079,0.043809,70728.0,70716.0,0.042416]
[1773515931386,0.042409,70728.0,70716.0,0.042416]
[1773515931586,0.043809,70728.0,70716.0,0.042416]
[1773515931885,0.04241,70727.0,70714.0,0.05462368]
[1773515935884,0.042411,70726.0,70714.0,0.05462368]
[1773515938691,0.042411,70725.0,70714.0,0.01220668]
[1773515940591,0.042411,70725.0,70712.0,0.043818]
[1773515941902,0.042411,70725.0,70713.0,0.042418]
[1773515942303,0.042413,70722.0,70712.0,0.0014]
[1773515943205,0.042413,70722.0,70709.0,0.04242]
[1773515943508,0.042413,70722.0,70710.0,0.0014]
[1773515943710,0.042413,70722.0,70709.0,0.04242]